Cogmind - Beta 16 @@@ ROGUE MODE // 2026.01.08 @ 11:10:45 Player: GermanMO Result: Destroyed by as-54587 with Assembled Heavy Rifle Performance ------------- Evolutions (0) 0 Regions Visited (2) 400 Robots Destroyed (18) 90 Value Destroyed (279) 279 Prototype IDs (1) 20 Alien Tech Used (0) 0 Bonus (0) 0 TOTAL SCORE: 789 Bonus ------- None Cogmind --------- Core Integrity 0/250 Matter 190/300 Energy 63/100 System Corruption 9% Temperature Cool (27) Movement Rolling (80) Location -10/Mines Parts ------- > --- POWER (1) -------- (None) > --- PROPULSION (2) --- Wheel > --- UTILITY (2) ------ (None) > --- WEAPON (2) ------- (None) > --- INVENTORY (5) ---- Visual Processing Unit Improved Terrain Scanner Mining Laser Peak State ------------ > --- POWER ------------ Light Ion Engine > --- PROPULSION ------- Wheel Wheel > --- UTILITY ---------- Visual Processing Unit Improved Terrain Scanner > --- WEAPON ----------- Improved Medium Laser Improved Medium Laser > --- INVENTORY -------- Wheel Improved Terrain Scanner Mining Laser [Rating: 14] Favorites ----------- Power Light Ion Engine Engine Light Ion Engine Propulsion Wheel Wheel Wheel Utility Improved Terrain Scanner Device Improved Terrain Scanner Processor Visual Processing Unit Weapon Improved Medium Laser Energy Gun Improved Medium Laser Ballistic Gun Assault Rifle Build | -11 -10 -10 ------- Run | Yrd Mat Min Slots Evolved . | . . . Power . | . . . Propulsion . | . . . Utility . | . . . Weapon . | . . . Parts Attached 11 | 7 3 1 Power 1 | 1 . . Engine 1 | 1 . . Core . | . . . Reactor . | . . . Propulsion 3 | 2 . 1 Treads . | . . . Leg . | . . . Wheel 3 | 2 . 1 Hover . | . . . Flight . | . . . Utility 3 | 2 1 . Device 2 | 2 . . Storage . | . . . Processor 1 | . 1 . Hackware . | . . . Protection . | . . . Artifact . | . . . Weapon 4 | 2 2 . Energy Gun 3 | 1 2 . Energy Cannon . | . . . Ballistic Gun 1 | 1 . . Ballistic Cannon . | . . . Launcher . | . . . Special Weapon . | . . . Impact Weapon . | . . . Slashing Weapon . | . . . Piercing Weapon . | . . . Special Melee Weapon . | . . . Unidentified Prototypes 1 | . 1 . Parts Lost 9 | . 3 6 Power 1 | . 1 . Propulsion 2 | . . 2 Utility 3 | . 1 2 Weapon 3 | . 1 2 Highest Loss Streak 6 | . 2 6 To Critical Strikes . | . . . Average Backups 3 | 1 3 4 Power . | . . . Propulsion . | . 1 1 Utility 1 | . 1 2 Weapon . | . 1 1 Tool/Special . | . . . Unused Backups 3 | . . 3 Power . | . . . Propulsion . | . . . Utility 2 | . . 2 Weapon 1 | . . 1 Tool/Special . | . . . Average Slot Usage (%) 85 | . 89 80 Engine 3 | . 7 . Wheel 27 | . 28 27 Device 15 | . 17 12 Processor 11 | . 8 13 Energy Gun 24 | . 22 26 Ballistic Gun 2 | . 4 . Peak Build Rating 14 | 9 14 13 Average Rating 10 | 5 11 12 On Entrance 7 | . 9 13 Avg Prop Armor Cover (%) . | . . . Naked Turns 1 | . . 1 Heaviest Build 10 | 9 10 7 Greatest Support 20 | 20 20 20 Greatest Overweight (x) . | . . . Average Overweight (x) . | . . . Largest Inventory Capacity 5 | 5 5 5 Average Capacity 5 | 5 5 5 Most Carried 4 | 3 4 4 Average Carried 3 | 1 3 3 Final Capacity 5 | 5 5 5 Final Carried 4 | 3 4 3 Class Distribution -------------------- 100% | Mutant Dominant Class ---------------- Mutant | -10/Materials Mutant | -10/Mines Resources | -11 -10 -10 ----------- Run | Yrd Mat Min Matter Collected 246 | 156 79 11 Remotely . | . . . Salvage Created 414 | 153 178 83 Parts 40 | 17 14 9 Haulers Intercepted . | . . . Recyclers Shooed . | . . . Parts Field Recycled . | . . . Retrieved Matter . | . . . Parts Self-Destructed . | . . . Prevented . | . . . Parts Restored . | . . . Kills | -11 -10 -10 ------- Run | Yrd Mat Min Combat Hostiles Destroyed 15 | . 8 7 Guns 13 | . 6 7 AOE 2 | . 2 . Classes Destroyed 7 | 2 3 2 Worker 1 | . 1 . Tunneler 4 | 4 . . Recycler 1 | 1 . . Swarmer 9 | . 6 3 Grunt 2 | . 2 . Demolisher 1 | . . 1 Assembled 3 | . . 3 Best Kill Streak 6 | 3 6 4 Combat Bots Only 5 | . 5 4 Max Kills in Single Turn 2 | 1 2 1 Gunslinging . | . . . Exploded 2 | . 2 . Melee . | . . . Uniques/NPCs Destroyed . | . . . Combat | -11 -10 -10 -------- Run | Yrd Mat Min Hostile Shots Fired 65 | . 25 40 Missed 15 | . 5 10 Hits 50 | . 20 30 Melee 7 | . . 7 Projectile 43 | . 20 23 Damage Taken 690 | . 230 460 Core 250 | . 28 222 Absorbed by Shields . | . . . Core Remaining (%) 100 | 100 . . Volleys Fired 51 | 15 21 15 Largest 2 | 2 2 2 Hottest 112 | 60 112 112 Shots Fired 91 | 24 38 29 Gun 91 | 24 38 29 Cannon . | . . . Launcher . | . . . Special . | . . . Kinetic 21 | 15 6 . Thermal 59 | . 30 29 Explosive . | . . . Electromagnetic 11 | 9 2 . Robot Hit Streak 6 | 6 4 4 Robot Miss Streak 5 | 2 5 4 Penetration Max . | . . . Secondary Targets 1 | . . 1 Max Gunslinging Chain 1 | . . 1 Shots Hit Robots 51 | 16 20 15 Core Hits 27 | 5 10 12 Critical Kills 1 | 1 . . Critical Parts Destroyed 1 | . 1 . Critical Strikes 7 | 1 5 1 Burn 5 | . 4 1 Destroy 2 | 1 1 . Melee Attacks . | . . . Impact . | . . . Slashing . | . . . Piercing . | . . . Sneak Attacks . | . . . Combat Hostiles . | . . . Follow-up Attacks . | . . . Damage Inflicted 966 | 205 435 326 Guns 890 | 205 361 324 Cannons . | . . . Explosions 74 | . 74 . Melee . | . . . Ramming 2 | . . 2 Kinetic 140 | 115 25 . Thermal 724 | . 400 324 Explosive . | . . . Electromagnetic 100 | 90 10 . Impact . | . . . Slashing . | . . . Piercing . | . . . Highest Corruption 9 | . . 9 Average Corruption 6 | . . 6 Corruption Purged . | . . . Corruption Blocked . | . . . Effects 1 | . . 1 Message Errors 1 | . . 1 Overload Shots . | . . . Overflow Damage . | . . . Projectiles . | . . . Explosions . | . . . Melee . | . . . Knockbacks . | . . . Impact . | . . . Kinetic . | . . . Secondary . | . . . Self-Inflicted Damage 40 | . 39 1 Shots 1 | . 1 . Rammed 1 | . . 1 Targets Rammed 1 | . . 1 Kicked . | . . . Crushed . | . . . Highest Temperature 353 | . 353 216 Average Temperature 135 | . 173 89 Received Heat Transfer 51 | . 51 . Effects 1 | . 1 . Matter Decay 1 | . 1 . Siege Activations . | . . . Martial Activations . | . . . Shielding Activations . | . . . Robots Disrupted . | . . . Combat Hostiles . | . . . Robots Corrupted . | . . . Combat Hostiles . | . . . Parts Fried . | . . . Impact Corruptions . | . . . Robots Melted . | . . . Combat Hostiles . | . . . Parts Melted 5 | . 5 . Heat Transferred 1876 | . 1099 777 Parts Sabotaged . | . . . Parts Stolen . | . . . Parts Stripped . | . . . Power Chain Reactions 1 | . 1 . Alert | -11 -10 -10 ------- Run | Yrd Mat Min Maximum Alert Level . | . . . Low Security (%) 100 | 100 100 100 Level 1 . | . . . Level 2 . | . . . Level 3 . | . . . Level 4 . | . . . Level 5 . | . . . High Security . | . . . Max Security . | . . . Peak Influence 158 | 10 158 99 Initial 49 | . 3 49 Average 61 | 2 92 64 Influence Increases 358 | 25 243 90 Destroy 0b10 Robot/C 240 | . 160 80 Destroy 0b10 Robot/NC 30 | 25 5 . Destroy Leader 40 | . 30 10 Disable Machine 30 | . 30 . Destroy Structure 3 | . 3 . Partial Spotted 15 | . 15 . Influence Decreases 358 | 20 120 218 Entered New Map 81 | . 2 79 Time Decay 200 | 20 90 90 Lost Part 77 | . 28 49 Squads Dispatched . | . . . Investigation . | . . . Extermination . | . . . Reinforcement . | . . . Assault . | . . . Garrison . | . . . Intercept . | . . . Searches Triggered . | . . . Construction Impeded . | . . . Haulers Reinforced . | . . . Active Scanning Responses . | . . . Cargo Convoy Interrupts . | . . . Stealth | -11 -10 -10 --------- Run | Yrd Mat Min Distress Signals 3 | . 3 . Communications Jammed . | . . . Distress Signals . | . . . Times Spotted 35 | . 10 25 Peak Tracking Total 12 | . 4 12 Tactical Retreats 1 | . . 1 Traps | -11 -10 -10 ------- Run | Yrd Mat Min Traps Triggered . | . . . Indirectly . | . . . Trap Hack Attempts . | . . . Triggered . | . . . Disarmed . | . . . Reprogrammed . | . . . Reused . | . . . Traps Extracted . | . . . Installed . | . . . Triggered . | . . . Machines | -11 -10 -10 ---------- Run | Yrd Mat Min Machines Disabled 2 | . 2 . Max in Single Turn 1 | . 1 . Machines Repaired . | . . . Machines Dismantled . | . . . Machines Sabotaged . | . . . Overloaded Fab Kills . | . . . Hacking | -11 -10 -10 --------- Run | Yrd Mat Min Machines Accessed . | . . . Terminals . | . . . Fabricators . | . . . Repair Stations . | . . . Recycling Units . | . . . Scanalyzers . | . . . Garrison Access . | . . . Total Hacks . | . . . Successful . | . . . Failed . | . . . Catastrophic . | . . . Database Lockouts . | . . . Manual . | . . . Terminals . | . . . Fabricators . | . . . Repair Stations . | . . . Recycling Units . | . . . Scanalyzers . | . . . Garrison Access . | . . . Terminal Hacks . | . . . Fabricator Hacks . | . . . Repair Station Hacks . | . . . Recycling Unit Hacks . | . . . Scanalyzer . | . . . Garrison Access Hacks . | . . . Unauthorized Hacks . | . . . Terminals . | . . . Fabricators . | . . . Repair Stations . | . . . Recycling Units . | . . . Scanalyzers . | . . . Garrison Access . | . . . Data Cores Recovered . | . . . Used . | . . . Hacking Detections . | . . . Full Trace Events . | . . . Feedback Events . | . . . Feedback Blocked . | . . . Robot Schematics Acquired . | . . . Robots Built . | . . . Authchips . | . . . Time . | . . . Total Robot Build Rating . | . . . Part Schematics Acquired . | . . . Parts Built . | . . . Authchips . | . . . Time . | . . . Total Part Build Rating . | . . . Part Studies Acquired . | . . . Parts Repaired . | . . . Time . | . . . Parts Recycled . | . . . Recycled Matter . | . . . Retrieved Matter . | . . . Retrieved Components . | . . . Parts Scanalyzed . | . . . Part Schematics Acquired . | . . . Parts Damaged . | . . . Bothacking | -11 -10 -10 ------------ Run | Yrd Mat Min Used RIF Installer . | . . . Robots Hacked . | . . . Non-combat . | . . . Combat . | . . . Robot Hacks Applied . | . . . Relay Couplers Released . | . . . Fabnet Peak Effective % . | . . . Robots Rewired . | . . . Allies Hacked . | . . . Hacks Repelled . | . . . Allies | -11 -10 -10 -------- Run | Yrd Mat Min Total Allies . | . . . Largest Group . | . . . Highest-Rated Group . | . . . Highest-Rated Ally . | . . . Total Orders . | . . . Ally Attacks . | . . . Total Damage . | . . . Kills . | . . . Allies Corrupted . | . . . Allies Melted . | . . . Intel | -11 -10 -10 ------- Run | Yrd Mat Min Active Infowar (turns) 454 | 64 203 187 Optics 324 | . 137 187 Terrain 444 | 64 203 177 Seismic 44 | 5 39 . Robot Analysis Total . | . . . Derelict Logs Recovered . | . . . Drone Launches . | . . . Drone Recoveries . | . . . Exploration | -11 -10 -10 ------------- Run | Yrd Mat Min Turns Passed 511 | 116 203 192 Spaces Moved 362 | 73 161 128 Core 9 | 9 . . Treads . | . . . Legs . | . . . Wheels 353 | 64 161 128 Hover . | . . . Flight . | . . . Fastest Speed 50 | 50 80 80 Average Speed 79 | 76 80 80 Slowest Speed 80 | 80 80 80 Overloaded Moves . | . . . Propulsion Burnouts . | . . . Robots Hopped . | . . . Potential Cave-ins . | . . . Cave-ins Triggered . | . . . Exploration Rate (%) 29 | 5 41 42 Regions Visited 2 Branch Regions 1 Pre-discovered Areas . | . . . Known Exits Taken . | . . . Unknown Exits Taken 2 | 1 1 . Scrap Searched . | . . . Spaces Dug . | . . . Terrain Destroyed 2 | . 2 . Melee . | . . . Projectile . | . . . AOE 2 | . 2 . Terrain Rammed . | . . . Walls Destroyed . | . . . Machines Disabled . | . . . Actions | -11 -10 -10 --------- Run | Yrd Mat Min Total 490 | 105 196 189 Wait 61 | 8 9 44 Move 360 | 72 160 128 Hop . | . . . Pick Up 4 | 3 1 . Fast Attach 10 | 7 3 . Attach 1 | . . 1 Detach 1 | . 1 . Swap . | . . . Drop 1 | . 1 . Fire 51 | 15 21 15 Melee . | . . . Ram 1 | . . 1 Kick . | . . . Crush . | . . . Escape Stasis . | . . . Rewire . | . . . Trap . | . . . Miscellaneous . | . . . Route ------- -11/Scrapyard -10/Materials (discovered 2 exits: [*Mat] / [*Min]) -10/Mines (discovered 1 exit: [*Mat]) History --------- Turn | Location | Event 10 | -11/Scrapyard | Discovered new exit (range 16) 117 | -11/Scrapyard | Entered Materials 284 | -10/Materials | Discovered new exit (range 5) 307 | -10/Materials | Discovered new exit (range 15) 318 | -10/Materials | Build established: Mutant 320 | -10/Materials | Entered Mines 399 | -10/Mines | Discovered new exit (range 7) 432 | -10/Mines | Assembled infested the area 510 | -10/Mines | Core integrity fell below 50% 512 | -10/Mines | Core integrity fell below 20% 512 | -10/Mines | Destroyed by as-54587 with Assembled Heavy Rifle Last Messages --------------- 00468_ as-61518 destroyed. 00471_ D-53 Grenadier destroyed. 00471_ Switching to secondary target: D-53 Grenadier. 00475_ The unstable cave ceiling collapses. 00476_ as-34968 destroyed. 00476_ D-53 Grenadier destroyed. 00477_ as-94146 destroyed. 00488_ as-01867 destroyed. 00495_ as-73112 suffers critical hit (Burn). 00497_ Imp. Terrain Scanner destroyed. 00497_ System corrupted by crushing effect (+5). 00498_ as-90632 destroyed. 00499_ U-05 Engineer destroyed. 00501_ Imp. Medium Laser destroyed. 00506_ System corrupted by crushing effect (+4). 00506_ Slammed into as-73112. 00507_ Wheel destroyed. 00507_ Visual Processing Unit destroyed. 00507_ Wheel destroyed. 00509_ >XCKD/TET/K0NZ:L68T DL Map ----- +----------------------------------------------------+ | | | | | | | | | | | #????????????????????????????????????????????????? | | #####?#??????????????????????????????????????????? | | # ##?????####??????????????????????????????????? | | ##??## ##?????????????????????????????????? | | #### #?????????????????????????????????? | | #?????????????????????????????????? | | """ #?????????????????????????????????? | | """ #?????????????????????????????????? | | """ #??????????????????????????????????? | | #??????????????????? ????????????? | | ### #??????????????????# ???????????? | | ##?## ##??????#??##?? #??# ???????????? | | ###???# #?#???????????# ### ???????????? | | ??##### #????????????# #???????????? | | ?## #???????????? # a #????????????? | | ?# ##?????????#### % #????????????? | | # ### ##?????????## % #????????????? | | # #??## ##????##### = #????????????? | | ####????## #????# % ##???????????? | | ##???????## ##???## ] #????????????? | | #????????## ##### % @ #????????????? | | ##?#??????## %! % #?????????????? | | #??????????# * a # ##?????????????? | | #####?????## ## ## a ##?#???????????????? | | ####???# ##!### %a #####?????#????????????? | | ##?## |!%=!a ##??????????????????????? | | #### ####### %a##??????????????????????? | | ##????# ##?????????????????????? | | #?#??# #???????#??????????????? | | ##???## ##?#??#?????????????????? | | #### ##???####?????????#?????????????? | | ##??## ###???#??????????????????????????? | | #?????###????????????????????????????????? | | ##?????????##????????????#???????????????? | | ##??????????????????????????????????????? | | #??????????????????????????????????????? | | #####???? ?????????????????#???????????? | | ?????????#??##????????????????????? | | ???????????????????#?????????????? | | ? ???????????????????????????????? | | ## ??????????????????????????????????? | | ####?? ??????????????????????????????????? | | ##????????????????????????????????????????? | | #?????????????????????????????????????????? | | #?????????????????????????????????????????? | +----------------------------------------------------+ Best States ------------- Heat Dissipation 25 Energy Generation 10 Energy Capacity 125 Matter Stores 190 Matter Capacity 300 Sight Range 18 Terrain Scan Range 16 Terrain Scan Density 10 Evasion (%) 44 Item Schematics ----------------- None Robot Schematics ------------------ None Fabricated ------------ Nothing Repaired ---------- Nothing Studied --------- None Alien Tech Used ----------------- None Achievements -------------- None Challenges ------------ None Game ------ Seed RestorationHugeLink Manual? 0 Play Time 00:08:30 Cumulative 29.6 hours Start 2026.01.08 @ 11:04:00 End 2026.01.08 @ 11:10:45 Sessions 1 Manual Loads 0 Difficulty Rogue Special Mode None Game No. 36 Rogue 17 Adventurer 0 Explorer 19 Win Type - Total 1 Types 1/0/0/0/0/0/0/0/0/0 Lore% 24 Gallery% 27 Achievement% 22 Wizard Run 0 Options --------- Layout 0 ASCII 0 Keyboard 1 Movement Arrows Keybinds 0 Fullscreen 2 Font 12/Smallcaps Map View 76x50 Zoom Use 0% Tactical HUD 1 Map Filters NONE Filters NONE Steam X RUN: 0b6839d1-52fc-4193-b9b1-ce4e58819ec1